fUST/lending_fUST_20250822
["ID","MTS","AMOUNT","RATE_DAILY","PERIOD"]
[380488749,1755793838713,-500.0,0.00019748,2]
[380488751,1755793838724,-500.0,0.00019748,2]
[380488753,1755793838733,-500.0,0.00019748,2]
[380488755,1755793838743,-500.0,0.00019748,2]
[380488757,1755793838753,-500.0,0.00019748,2]
[380488759,1755793838767,-500.0,0.00019748,2]
[380488761,1755793838776,-500.0,0.00019748,2]
[380488763,1755793838785,-500.0,0.00019748,2]
[380488765,1755793838795,-500.0,0.00019748,2]
[380488766,1755793838804,-500.0,0.00019748,2]
[380488769,1755793838814,-500.0,0.00019748,2]
[380488771,1755793838824,-500.0,0.00019748,2]
[380488773,1755793838836,-500.0,0.00019748,2]
[380488775,1755793838846,-500.0,0.00019748,2]
[380488777,1755793838856,-500.0,0.00019748,2]
[380488778,1755793838866,-500.0,0.00019748,2]
[380488780,1755793838875,-500.0,0.00019748,2]
[380488782,1755793838885,-500.0,0.00019748,2]
[380488785,1755793838894,-500.0,0.00019748,2]
[380488787,1755793838903,-500.0,0.00019748,2]
[380488789,1755793838912,-500.0,0.00019748,2]
[380488790,1755793838921,-500.0,0.00019748,2]
[380488793,1755793838931,-500.0,0.00019748,2]
[380488794,1755793838940,-500.0,0.00019748,2]
[380488796,1755793838949,-500.0,0.00019748,2]
[380488798,1755793838958,-500.0,0.00019748,2]
[380488800,1755793838967,-500.0,0.00019748,2]
[380488802,1755793838976,-500.0,0.00019748,2]
[380488804,1755793838986,-500.0,0.00019748,2]
[380488806,1755793838995,-500.0,0.00019748,2]
[380488808,1755793839005,-500.0,0.00019748,2]
[380488810,1755793839014,-500.0,0.00019748,2]
[380488812,1755793839023,-500.0,0.00019748,2]
[380488814,1755793839033,-500.0,0.00019748,2]
[380488816,1755793839043,-500.0,0.00019748,2]
[380488818,1755793839053,-500.0,0.00019748,2]
[380488820,1755793839063,-500.0,0.00019748,2]
[380488822,1755793839071,-500.0,0.00019748,2]
[380488824,1755793839081,-500.0,0.00019748,2]
[380488826,1755793839090,-500.0,0.00019748,2]
[380488828,1755793839102,-500.0,0.00019748,2]
[380488830,1755793839112,-277.7457916,0.00019748,2]
[380488832,1755793839121,-500.0,0.00019748,2]
[380488834,1755793839136,-500.0,0.00019748,2]
[380488836,1755793839146,-500.0,0.00019748,2]
[380488838,1755793839157,-500.0,0.00019748,2]
[380488840,1755793839166,-500.0,0.00019748,2]
[380488842,1755793839177,-500.0,0.00019748,2]
[380488844,1755793839186,-251.35963986,0.00019749,2]
[380488846,1755793839195,-480.0,0.0001975,2]
[380488848,1755793839205,-480.0,0.0001975,2]
[380488850,1755793839214,-480.0,0.0001975,2]
[380488852,1755793839223,-785.97,0.0001975,2]
[380488854,1755793839232,-480.0,0.0001975,2]
[380488856,1755793839241,-480.0,0.0001975,2]
[380488858,1755793839250,-480.0,0.0001975,2]
[380488860,1755793839260,-480.0,0.0001975,2]
[380488862,1755793839269,-572.46,0.0001975,2]
[380488864,1755793839278,-480.0,0.0001975,2]
[380488866,1755793839288,-480.0,0.0001975,2]
[380488868,1755793839298,-865.58,0.0001975,2]
[380488870,1755793839307,-949.12,0.0001975,2]
[380488872,1755793839316,-480.0,0.0001975,2]
[380488874,1755793839327,-687.58,0.0001975,2]
[380488876,1755793839338,-541.27,0.0001975,2]
[380488878,1755793839347,-480.0,0.0001975,2]
[380488880,1755793839357,-480.0,0.0001975,2]
[380488882,1755793839366,-480.0,0.0001975,2]
[380488884,1755793839375,-480.0,0.0001975,2]
[380488886,1755793839384,-800.21,0.0001975,2]
[380488888,1755793839393,-736.42,0.0001975,2]
[380488890,1755793839402,-480.0,0.0001975,2]
[380488892,1755793839411,-480.0,0.0001975,2]
[380488894,1755793839420,-589.62,0.0001975,2]
[380488896,1755793839429,-2460.51,0.0001975,2]
[380488898,1755793839438,-480.0,0.0001975,2]
[380488899,1755793839447,-480.0,0.0001975,2]
[380488902,1755793839457,-2283.27,0.0001975,2]
[380488903,1755793839467,-480.0,0.0001975,2]
[380488905,1755793839476,-1078.41,0.0001975,2]
[380488907,1755793839484,-890.16,0.0001975,2]
[380488910,1755793839494,-2583.32,0.0001975,2]
[380488911,1755793839503,-3620.96,0.0001975,2]
[380488913,1755793839512,-480.0,0.0001975,2]
[380488915,1755793839521,-501.11,0.0001975,2]
[380488917,1755793839530,-634.26,0.0001975,2]
[380488919,1755793839539,-480.0,0.0001975,2]
[380488921,1755793839549,-480.0,0.0001975,2]
[380488923,1755793839559,-500.0,0.0001975,2]
[380488925,1755793839568,-480.0,0.00019751,2]
[380488927,1755793839578,-1334.31,0.00019751,2]
[380488928,1755793839589,-480.0,0.00019751,2]
[380488929,1755793839599,-480.0,0.00019751,2]
[380488930,1755793839608,-480.0,0.00019751,2]
[380488931,1755793839618,-480.0,0.00019751,2]
[380488932,1755793839627,-480.0,0.00019751,2]
[380488933,1755793839637,-480.0,0.00019751,2]
[380488934,1755793839646,-480.0,0.00019751,2]
[380488935,1755793839656,-480.0,0.00019751,2]
[380488936,1755793839665,-480.0,0.00019751,2]
[380488937,1755793839677,-480.0,0.00019751,2]
[380488938,1755793839691,-419.08444556,0.00019751,2]
[380488939,1755793839700,-480.0,0.00019751,2]
[380488940,1755793839711,-778.46,0.00019751,2]
[380488941,1755793839720,-480.0,0.00019751,2]
[380488942,1755793839729,-480.0,0.00019751,2]
[380488943,1755793839738,-480.0,0.00019751,2]
[380488944,1755793839748,-480.0,0.00019751,2]
[380488945,1755793839757,-480.0,0.00019751,2]
[380488946,1755793839766,-534.85,0.00019751,2]
[380488947,1755793839775,-551.1,0.00019751,2]
[380488948,1755793839784,-480.0,0.00019751,2]
[380488949,1755793839793,-480.0,0.00019751,2]
[380488950,1755793839802,-731.52,0.00019751,2]
[380488951,1755793839811,-480.0,0.00019751,2]
[380488952,1755793839820,-480.0,0.00019751,2]
[380488953,1755793839829,-480.0,0.00019751,2]
[380488954,1755793839839,-480.0,0.00019751,2]
[380488955,1755793839848,-701.15,0.00019751,2]
[380488956,1755793839857,-480.0,0.00019751,2]
[380488957,1755793839866,-584.9,0.00019751,2]
[380488958,1755793839875,-480.0,0.00019751,2]
[380488959,1755793839884,-442.29306723,0.00019751,2]
[380488960,1755793839893,-480.0,0.00019751,2]
[380488961,1755793839902,-480.0,0.00019751,2]
[380488962,1755793839911,-440.0,0.00019751,2]
[380488964,1755793839920,-480.0,0.00019751,2]
[380488966,1755793839929,-480.0,0.00019751,2]
[380488968,1755793839938,-460.0,0.00019751,2]
[380488970,1755793839947,-480.0,0.00019751,2]
[380488972,1755793839957,-480.0,0.00019751,2]
[380488974,1755793839966,-461.13500303,0.00019751,2]
[380488976,1755793839976,-480.0,0.00019751,2]
[380488978,1755793839986,-480.0,0.00019751,2]
[380488980,1755793839995,-480.0,0.00019751,2]
[380488982,1755793840005,-480.0,0.00019751,2]
[380488984,1755793840015,-440.0,0.00019751,2]
[380488986,1755793840024,-480.0,0.00019751,2]
[380488988,1755793840033,-480.0,0.00019751,2]
[380488990,1755793840043,-1878.08,0.00019751,2]
[380488992,1755793840051,-151.0,0.00019751,2]
[380488994,1755793840062,-151.0,0.00019751,2]
[380488996,1755793840071,-500.0,0.00019751,2]
[380488998,1755793840079,-151.0,0.00019751,2]
[380489000,1755793840092,-153.08576219,0.00019751,2]
[380489002,1755793840101,-480.0,0.00019751,2]
[380489004,1755793840111,-151.0,0.00019751,2]
[380489006,1755793840121,-151.0,0.00019751,2]
[380489008,1755793840131,-151.30909357,0.00019751,2]
[380489010,1755793840141,-151.0,0.00019751,2]
[380489012,1755793840150,-151.0,0.00019751,2]
[380489014,1755793840159,-151.0,0.00019751,2]
[380489016,1755793840168,-268.18880402,0.00019751,2]
[380489018,1755793840178,-777.48,0.00019751,2]
[380489020,1755793840187,-480.0,0.00019751,2]
[380489022,1755793840197,-480.0,0.00019751,2]
[380489024,1755793840207,-473.3659068,0.00019751,2]
[380489026,1755793840217,-480.0,0.00019751,2]
[380489028,1755793840227,-480.0,0.00019751,2]
[380489030,1755793840236,-345.60498488,0.00019751,2]
[380489032,1755793840245,-480.0,0.00019751,2]
[380489034,1755793840254,-588.0,0.00019751,2]
[380489036,1755793840263,-151.18160386,0.00019751,2]
[380489038,1755793840273,-500.0,0.00019751,2]
[380489040,1755793840284,-500.0,0.00019751,2]
[380489042,1755793840294,-500.0,0.00019751,2]
[380489044,1755793840304,-151.0,0.00019751,2]
[380489046,1755793840314,-500.0,0.00019751,2]
[380489048,1755793840324,-151.0,0.00019751,2]
[380489050,1755793840340,-151.22664091,0.00019751,2]
[380489052,1755793840349,-500.0,0.00019751,2]
[380489054,1755793840359,-274.69903344,0.00019751,2]
[380489056,1755793840369,-151.29351082,0.00019751,2]
[380489058,1755793840379,-151.0,0.00019751,2]
[380489060,1755793840389,-151.41735249,0.00019751,2]
[380489062,1755793840399,-151.0,0.00019751,2]
[380489064,1755793840408,-735.91,0.00019751,2]
[380489066,1755793840418,-480.0,0.00019751,2]
[380489068,1755793840427,-480.0,0.00019751,2]
[380489070,1755793840437,-480.0,0.00019751,2]
[380489072,1755793840446,-625.95,0.00019751,2]
[380489074,1755793840455,-322.40961275,0.00019751,2]
[380489076,1755793840466,-480.0,0.00019751,2]
[380489077,1755793840475,-151.0,0.00019751,2]
[380489079,1755793840485,-1562.58,0.00019751,2]
[380489081,1755793840495,-151.0,0.00019751,2]
[380489083,1755793840505,-151.0,0.00019751,2]
[380489085,1755793840515,-151.0,0.00019751,2]
[380489087,1755793840525,-151.0,0.00019751,2]
[380489090,1755793840534,-480.0,0.00019751,2]
[380489092,1755793840543,-500.0,0.00019751,2]
[380489093,1755793840552,-480.0,0.00019751,2]
[380489095,1755793840562,-151.0,0.00019751,2]
[380489097,1755793840571,-480.0,0.00019751,2]
[380489099,1755793840580,-480.0,0.00019751,2]
[380489102,1755793840593,-151.0,0.00019751,2]
[380489104,1755793840603,-151.0,0.00019751,2]
[380489106,1755793840612,-151.0,0.00019751,2]
[380489108,1755793840622,-151.0,0.00019751,2]
[380489110,1755793840631,-151.0,0.00019751,2]
[380489112,1755793840641,-151.0,0.00019751,2]
[380489114,1755793840650,-1994.29,0.00019751,2]
[380489115,1755793840660,-464.03140194,0.00019751,2]
[380489118,1755793840670,-151.0,0.00019751,2]
[380489120,1755793840684,-500.0,0.00019751,2]
[380489122,1755793840694,-500.0,0.00019751,2]
[380489124,1755793840704,-480.0,0.00019751,2]
[380489126,1755793840713,-151.0,0.00019751,2]
[380489128,1755793840723,-917.99,0.00019751,2]
[380489130,1755793840734,-569.16,0.00019751,2]
[380489132,1755793840743,-1189.11,0.00019751,2]
[380489134,1755793840752,-480.0,0.00019751,2]
[380489135,1755793840761,-480.36,0.00019751,2]
[380489137,1755793840771,-793.24,0.00019751,2]
[380489139,1755793840780,-1334.04,0.00019751,2]
[380489141,1755793840790,-422.52932423,0.00019751,2]
[380489143,1755793840799,-480.0,0.00019751,2]
[380489145,1755793840808,-480.0,0.00019751,2]
[380489147,1755793840818,-2174.47,0.00019751,2]
[380489149,1755793840827,-1803.92,0.00019751,2]
[380489151,1755793840838,-480.0,0.00019751,2]
[380489153,1755793840848,-421.99374897,0.00019751,2]
[380489155,1755793840857,-1005.56,0.00019751,2]
[380489157,1755793840866,-480.0,0.00019751,2]
[380489159,1755793840875,-428.91092594,0.00019751,2]
[380489161,1755793840885,-2817.07,0.00019751,2]
[380489163,1755793840894,-480.0,0.00019751,2]
[380489165,1755793840903,-480.0,0.00019751,2]
[380489167,1755793840912,-480.0,0.00019751,2]
[380489168,1755793840921,-4813.06,0.00019751,2]
[380489170,1755793840931,-500.25,0.00019751,2]
[380489172,1755793840942,-1926.7,0.00019752,2]
[380489174,1755793840952,-1270.78,0.00019752,2]
[380489176,1755793840961,-480.0,0.00019752,2]
[380489178,1755793840970,-480.0,0.00019752,2]
[380489180,1755793840980,-480.0,0.00019752,2]
[380489182,1755793840989,-480.0,0.00019752,2]
[380489184,1755793840999,-480.0,0.00019752,2]
[380489186,1755793841008,-480.0,0.00019752,2]
[380489188,1755793841018,-1103.29,0.00019752,2]
[380489190,1755793841027,-480.0,0.00019752,2]
[380489192,1755793841036,-480.0,0.00019752,2]
[380489194,1755793841045,-592.33,0.00019752,2]
[380489196,1755793841055,-1835.76,0.00019752,2]
[380489198,1755793841064,-500.0,0.00019752,2]
[380489200,1755793841073,-151.0,0.00019752,2]
[380489202,1755793841084,-489.8,0.00019752,2]
[380489204,1755793841093,-497.86,0.00019752,2]
[380489206,1755793841102,-480.0,0.00019752,2]
[380489208,1755793841112,-480.0,0.00019752,2]
[380489210,1755793841121,-752.88,0.00019752,2]
[380489212,1755793841130,-480.0,0.00019752,2]
[380489214,1755793841139,-578.83,0.00019752,2]
[380489216,1755793841148,-581.48,0.00019752,2]
[380489218,1755793841158,-724.18,0.00019752,2]
[380489220,1755793841167,-2279.76,0.00019752,2]
[380489222,1755793841177,-480.0,0.00019752,2]
[380489224,1755793841186,-1676.15,0.00019752,2]
[380489226,1755793841196,-480.0,0.00019752,2]
[380489228,1755793841205,-480.0,0.00019752,2]
[380489230,1755793841215,-480.0,0.00019752,2]
[380489232,1755793841224,-480.0,0.00019752,2]
[380489233,1755793841233,-1026.38,0.00019752,2]
[380489235,1755793841242,-953.5,0.00019752,2]
[380489237,1755793841251,-480.0,0.00019752,2]
[380489239,1755793841261,-480.0,0.00019752,2]
[380489241,1755793841271,-796.2,0.00019752,2]
[380489243,1755793841280,-242.76995867,0.00019752,2]
[380489245,1755793841289,-480.0,0.00019752,2]
[380489247,1755793841298,-968.87,0.00019752,2]
[380489249,1755793841307,-480.0,0.00019752,2]
[380489251,1755793841316,-480.0,0.00019752,2]
[380489253,1755793841325,-480.0,0.00019752,2]
[380489255,1755793841336,-480.0,0.00019752,2]
[380489257,1755793841346,-480.0,0.00019752,2]
[380489259,1755793841356,-711.95,0.00019752,2]
[380489261,1755793841366,-480.0,0.00019752,2]
[380489263,1755793841375,-2505.13,0.00019752,2]
[380489265,1755793841384,-1061.62,0.00019752,2]
[380489267,1755793841393,-2176.19,0.00019752,2]
[380489269,1755793841403,-480.0,0.00019752,2]
[380489271,1755793841412,-480.0,0.00019752,2]
[380489273,1755793841421,-480.0,0.00019752,2]
[380489275,1755793841432,-545.58,0.00019752,2]
[380489277,1755793841441,-480.0,0.00019752,2]
[380489279,1755793841451,-2313.11,0.00019752,2]
[380489281,1755793841460,-480.0,0.00019752,2]
[380489283,1755793841470,-4681.9,0.00019752,2]
[380489285,1755793841479,-480.0,0.00019752,2]
[380489287,1755793841488,-500.0,0.00019752,2]
[380489289,1755793841497,-480.0,0.00019752,2]
[380489291,1755793841507,-913.59,0.00019752,2]
[380489293,1755793841518,-480.0,0.00019752,2]
[380489295,1755793841528,-919.48,0.00019752,2]
[380489297,1755793841537,-460.0,0.00019752,2]
[380489299,1755793841547,-461.05314454,0.00019752,2]
[380489301,1755793841556,-480.0,0.00019752,2]
[380489303,1755793841566,-480.0,0.00019752,2]
[380489305,1755793841575,-15233.29,0.00019752,2]
[380489307,1755793841585,-1968.3,0.00019752,2]
[380489309,1755793841594,-4444.0,0.00019752,2]
[380489311,1755793841603,-753.72,0.00019752,2]
[380489313,1755793841612,-875.12,0.00019752,2]
[380489315,1755793841621,-714.42,0.00019752,2]
[380489317,1755793841631,-757.11,0.00019752,2]
[380489319,1755793841640,-4009.41,0.00019752,2]
[380489321,1755793841649,-2806.14,0.00019752,2]
[380489323,1755793841658,-525.33,0.00019752,2]
[380489325,1755793841668,-14219.45,0.00019752,2]
[380489327,1755793841678,-480.0,0.00019752,2]
[380489328,1755793841688,-10658.42,0.00019752,2]
[380489330,1755793841697,-481.92935099,0.00019752,2]
[380489332,1755793841707,-974.07,0.00019752,2]
[380489334,1755793841716,-1945.57,0.00019752,2]
[380489337,1755793841727,-1179.28,0.00019752,2]
[380489338,1755793841736,-480.0,0.00019752,2]
[380489340,1755793841745,-943.64,0.00019752,2]
[380489343,1755793841756,-629.62,0.00019752,2]
[380489345,1755793841765,-480.0,0.00019752,2]
[380489346,1755793841774,-480.0,0.00019752,2]
[380489349,1755793841783,-480.0,0.00019752,2]
[380489351,1755793841793,-2012.41,0.00019752,2]
[380489352,1755793841802,-480.0,0.00019752,2]
[380489354,1755793841811,-238.93125501,0.00019752,2]
[380489356,1755793841820,-1084.8,0.00019752,2]
[380489358,1755793841829,-480.0,0.00019752,2]
[380489361,1755793841841,-480.0,0.00019752,2]
[380489362,1755793841851,-6391.99,0.00019752,2]
[380489365,1755793841861,-499.93,0.00019752,2]
[380489367,1755793841871,-500.0,0.00019754,2]
[380489369,1755793841880,-500.0,0.00019754,2]
[380489371,1755793841892,-500.0,0.00019754,2]
[380489373,1755793841901,-249.60951735,0.00019755,2]
[380489375,1755793841911,-461.20061775,0.00019755,2]
[380489376,1755793841920,-480.0,0.00019755,2]
[380489378,1755793841930,-480.0,0.00019755,2]
[380489380,1755793841939,-904.86,0.00019755,2]
[380489382,1755793841949,-421.80046204,0.00019755,2]
[380489384,1755793841959,-351.9337774,0.00019755,2]
[380489386,1755793841969,-527.81,0.00019755,2]
[380489388,1755793841978,-480.0,0.00019755,2]
[380489390,1755793841988,-480.0,0.00019755,2]
[380489392,1755793841998,-480.0,0.00019755,2]
[380489394,1755793842006,-480.0,0.00019755,2]
[380489396,1755793842016,-215.84626152,0.00019755,2]
[380489398,1755793842025,-480.0,0.00019755,2]
[380489400,1755793842034,-480.0,0.00019755,2]
[380489402,1755793842043,-480.0,0.00019755,2]
[380489404,1755793842053,-460.67926252,0.00019755,2]
[380489406,1755793842063,-480.0,0.00019755,2]
[380489408,1755793842072,-158.36097535,0.00019755,2]
[380489410,1755793842080,-1472.47,0.00019755,2]
[380489412,1755793842091,-480.0,0.00019755,2]
[380489414,1755793842101,-461.61865116,0.00019755,2]
[380489416,1755793842110,-925.62,0.00019755,2]
[380489418,1755793842119,-461.36859759,0.00019755,2]
[380489420,1755793842128,-864.84,0.00019755,2]
[380489422,1755793842137,-480.0,0.00019755,2]
[380489424,1755793842146,-461.13877602,0.00019755,2]
[380489426,1755793842155,-480.0,0.00019755,2]
[380489427,1755793842165,-480.0,0.00019755,2]
[380489429,1755793842174,-416.50944897,0.00019755,2]
[380489431,1755793842184,-480.0,0.00019755,2]
[380489433,1755793842193,-480.0,0.00019755,2]
[380489435,1755793842202,-480.0,0.00019755,2]
[380489437,1755793842212,-480.0,0.00019755,2]
[380489439,1755793842223,-460.0,0.00019755,2]
[380489442,1755793842233,-537.20890843,0.00019755,2]
[380489443,1755793842243,-480.0,0.00019755,2]
[380489445,1755793842252,-480.0,0.00019755,2]
[380489447,1755793842261,-663.39,0.00019755,2]
[380489449,1755793842271,-480.0,0.00019755,2]
[380489451,1755793842280,-371.6961619,0.00019755,2]
[380489453,1755793842289,-480.0,0.00019755,2]
[380489455,1755793842299,-480.0,0.00019755,2]
[380489458,1755793842308,-480.0,0.00019755,2]
[380489461,1755793842317,-417.47828586,0.00019755,2]
[380489463,1755793842327,-480.0,0.00019755,2]
[380489465,1755793842336,-480.0,0.00019755,2]
[380489467,1755793842346,-185.0643706,0.00019755,2]
[380489469,1755793842356,-394.41432217,0.00019755,2]
[380489471,1755793842365,-480.0,0.00019755,2]
[380489473,1755793842373,-480.0,0.00019755,2]
[380489475,1755793842383,-480.0,0.00019755,2]
[380489477,1755793842392,-480.0,0.00019755,2]
[380489479,1755793842402,-480.0,0.00019755,2]
[380489482,1755793842411,-440.0,0.00019755,2]
[380489484,1755793842420,-257.14184334,0.00019755,2]
[380489486,1755793842431,-480.0,0.00019755,2]
[380489488,1755793842440,-688.2,0.00019755,2]
[380489490,1755793842450,-480.0,0.00019755,2]
[380489492,1755793842459,-480.0,0.00019755,2]
[380489494,1755793842470,-480.0,0.00019755,2]
[380489496,1755793842480,-711.04,0.00019755,2]
[380489497,1755793842489,-480.0,0.00019755,2]
[380489499,1755793842499,-480.0,0.00019755,2]
[380489519,1755793842679,-270.73864024,0.00019755,2]
[380489521,1755793842688,-480.0,0.00019755,2]
[380489523,1755793842698,-1174.9,0.00019755,2]
[380489525,1755793842707,-480.0,0.00019755,2]
[380489527,1755793842717,-480.0,0.00019755,2]
[380489529,1755793842726,-440.0,0.00019755,2]
[380489531,1755793842735,-547.24,0.00019755,2]
[380489533,1755793842745,-480.0,0.00019755,2]
[380489535,1755793842758,-480.0,0.00019755,2]
[380489537,1755793842768,-440.84335416,0.00019755,2]
[380489539,1755793842778,-389.04139788,0.00019755,2]
[380489541,1755793842787,-480.0,0.00019755,2]
[380489543,1755793842796,-443.688021,0.00019755,2]
[380489545,1755793842806,-414.8654493,0.00019755,2]
[380489547,1755793842815,-480.0,0.00019755,2]
[380489549,1755793842825,-480.0,0.00019755,2]
[380489551,1755793842835,-480.0,0.00019755,2]
[380489553,1755793842844,-480.0,0.00019755,2]
[380489555,1755793842854,-480.0,0.00019755,2]
[380489556,1755793842863,-480.0,0.00019755,2]
[380489558,1755793842872,-480.0,0.00019755,2]
[380489560,1755793842882,-480.0,0.00019755,2]
[380489562,1755793842892,-480.0,0.00019755,2]
[380489564,1755793842901,-500.0,0.00019755,2]
[380489566,1755793842910,-772.45,0.00019755,2]
[380489568,1755793842919,-480.0,0.00019755,2]
[380489571,1755793842928,-480.0,0.00019755,2]
[380489573,1755793842938,-480.0,0.00019755,2]
[380489575,1755793842947,-463.05123982,0.00019755,2]
[380489577,1755793842956,-1637.38,0.00019755,2]
[380489579,1755793842965,-480.0,0.00019755,2]
[380489582,1755793842974,-480.0,0.00019755,2]
[380489586,1755793842983,-480.0,0.00019755,2]
[380489588,1755793842992,-480.0,0.00019755,2]
[380489590,1755793843002,-480.0,0.00019755,2]
[380489592,1755793843011,-948.53,0.00019755,2]
[380489594,1755793843020,-480.0,0.00019755,2]
[380489596,1755793843029,-480.0,0.00019755,2]
[380489598,1755793843039,-480.0,0.00019755,2]
[380489600,1755793843048,-480.0,0.00019755,2]
[380489602,1755793843058,-480.0,0.00019755,2]
[380489604,1755793843069,-497.54,0.00019755,2]
[380489606,1755793843080,-480.0,0.00019755,2]
[380489608,1755793843092,-480.0,0.00019755,2]
[380489610,1755793843101,-1147.5,0.00019755,2]
[380489612,1755793843111,-489.09,0.00019755,2]
[380489614,1755793843120,-1481.81,0.00019755,2]
[380489616,1755793843130,-480.0,0.00019755,2]
[380489618,1755793843141,-917.6,0.00019755,2]
[380489620,1755793843150,-480.0,0.00019755,2]
[380489622,1755793843160,-480.0,0.00019755,2]
[380489624,1755793843170,-480.0,0.00019755,2]
[380489626,1755793843179,-480.0,0.00019755,2]
[380489629,1755793843189,-480.0,0.00019755,2]
[380489631,1755793843198,-480.0,0.00019755,2]
[380489632,1755793843209,-460.0,0.00019755,2]
[380489634,1755793843218,-480.0,0.00019755,2]
[380489636,1755793843228,-480.0,0.00019755,2]
[380489638,1755793843237,-1032.03,0.00019755,2]
[380489640,1755793843246,-344.32424444,0.00019755,2]
[380489642,1755793843256,-559.28142948,0.00019755,2]
[380489644,1755793843265,-356.18884641,0.00019755,2]
[380489646,1755793843275,-1127.63,0.00019755,2]
[380489648,1755793843285,-1329.97,0.00019755,2]
[380489650,1755793843295,-480.0,0.00019755,2]
[380489652,1755793843304,-480.0,0.00019755,2]
[380489654,1755793843314,-480.0,0.00019755,2]
[380489656,1755793843323,-480.0,0.00019755,2]
[380489658,1755793843333,-480.0,0.00019755,2]
[380489660,1755793843348,-480.0,0.00019755,2]
[380489663,1755793843359,-440.0,0.00019755,2]
[380489665,1755793843368,-480.0,0.00019755,2]
[380489667,1755793843378,-480.0,0.00019755,2]
[380489669,1755793843388,-444.95865104,0.00019755,2]
[380489671,1755793843399,-480.0,0.00019755,2]
[380489672,1755793843408,-480.0,0.00019755,2]
[380489675,1755793843419,-546.66840928,0.00019755,2]
[380489676,1755793843431,-480.0,0.00019755,2]
[380489678,1755793843442,-480.0,0.00019755,2]
[380489680,1755793843452,-480.0,0.00019755,2]
[380489682,1755793843462,-480.0,0.00019755,2]
[380489684,1755793843472,-480.0,0.00019755,2]
[380489686,1755793843483,-461.48483732,0.00019755,2]
[380489688,1755793843492,-480.0,0.00019755,2]
[380489691,1755793843503,-480.0,0.00019755,2]
[380489693,1755793843512,-480.0,0.00019755,2]
[380489695,1755793843522,-1110.3,0.00019755,2]
[380489697,1755793843532,-480.0,0.00019755,2]
[380489699,1755793843542,-480.0,0.00019755,2]
[380489701,1755793843552,-647.07,0.00019755,2]
[380489703,1755793843562,-581.49,0.00019755,2]
[380489705,1755793843572,-480.0,0.00019755,2]
[380489707,1755793843582,-868.9133255,0.00019788,2]
[380489709,1755793843597,-2105.41764886,0.00019793,2]
[380489711,1755793843607,-2183.31810187,0.00019848,2]
[380489714,1755793843617,-500.0,0.00019851,2]
[380489716,1755793843627,-500.0,0.00019851,2]
[380489717,1755793843636,-500.0,0.00019852,2]
[380489719,1755793843646,-500.0,0.00019852,2]
[380489721,1755793843655,-500.0,0.00019852,2]
[380489723,1755793843666,-480.0,0.00019853,2]
[380489725,1755793843675,-480.0,0.00019853,2]
[380489727,1755793843687,-490.88,0.00019853,2]
[380489729,1755793843697,-480.0,0.00019853,2]